[Event "SWE-ch U13 2019"]
[Site "Eskilstuna"]
[Date "2019.07.08"]
[Round "1.4"]
[White "Morell, Ludvig"]
[Black "Fridman, Arvid"]
[Result "0-1"]
[ECO "B41"]
[WhiteElo "1744"]
[BlackElo "1326"]
[Annotator "NA"]
[PlyCount "74"]
[EventDate "2019.07.06"]
[EventType "tourn"]
[EventCountry "SWE"]
[SourceTitle "playchess.com"]
[Source "ChessBase"]
[SourceQuality "1"]
[TimeControl "40/5400+30:1800+30"]

1. e4 {[%emt 0:00:00]} c5 {[%emt 0:00:00]} 2. Nf3 {[%emt 0:00:00]} e6 {[%emt 0:00:04]} 3. d4 {[%emt 0:00:00]} cxd4 {[%emt 0:00:06]} 4. Nxd4 {[%emt 0:00:00]} a6 {[%emt 0:00:34]} 5. c4 {[%emt 0:00:00]} Nf6 {[%emt 0:00:26]} 6. Nc3 {[%emt 0:00:10]} Qc7 {[%emt 0:01:14]} 7. Be2 {[%emt 0:00:12]} Bd6 {[%emt 0:01:32]} 8. g3 {[%emt 0:04:12]} Bb4 {[%emt 0:04:06]} 9. Qd3 {[%emt 0:00:34]} Nc6 {[%emt 0:03:46]} 10. Nxc6 {[%emt 0:01:15]} dxc6 {[%emt 0:01:52]} 11. a3 {[%emt 0:00:52]} Bxc3+ {[%emt 0:09:26]} 12. Qxc3 {[%emt 0:00:09]} e5 {[%emt 0:00:08]} 13. f3 {[%emt 0:01:01]} Bh3 {[%emt 0:07:45]} 14. c5 {[%emt 0:06:10]} O-O-O {[%emt 0:05:12]} 15. b4 {[%emt 0:02:14]} h5 {[%emt 0:03:28]} 16. Bb2 {[%emt 0:01:12]} Rhe8 {[%emt 0:05:04]} 17. a4 {[%emt 0:01:16]} Rd4 {[%emt 0:13:50]} 18. Qa3 {[%emt 0:04:15]} Nxe4 {[%emt 0:12:08]} 19. Bxd4 {[%emt 0:02:41]} exd4 {[%emt 0:00:06]} 20. fxe4 {[%emt 0:01:13]} Rxe4 {[%emt 0:00:23]} 21. Qd3 {[%emt 0:03:39]} Qe5 {[%emt 0:03:49]} 22. O-O-O {[%emt 0:17:59]} Rxe2 {[%emt 0:03:57]} 23. Qxd4 {[%emt 0:00:27]} Qg5+ {[%emt 0:03:00]} 24. Kb1 {[%emt 0:02:09]} Bf5+ {[%emt 0:02:01]} 25. Ka1 {[%emt 0:00:09]} Be6 {[%emt 0:01:37]} 26. Rhe1 {[%emt 0:12:22]} Ra2+ {[%emt 0:03:14]} 27. Kb1 {[%emt 0:00:08]} Rxa4 {[%emt 0:07:18]} 28. Rxe6 {[%emt 0:05:20]} fxe6 {[%emt 0:00:16]} 29. Qd7+ {[%emt 0:00:03]} Kb8 {[%emt 0:00:07]} 30. Qe8+ {[%emt 0:00:05]} Ka7 {[%emt 0:00:16]} 31. Rd8 {[%emt 0:00:03]} Qf5+ {[%emt 0:06:09]} 32. Kc1 {[%emt 0:02:24]} Ra1+ {[%emt 0:00:32]} 33. Kd2 {[%emt 0:08:28]} Qf2+ {[%emt 0:00:22]} 34. Kd3 {[%emt 0:00:56]} Ra3+ {[%emt 0:00:15]} 35. Kc4 {[%emt 0:00:49]} Qe2+ {[%emt 0:00:08]} 36. Kd4 {[%emt 0:00:07]} Rd3+ {[%emt 0:00:11]} 37. Kc4 {[%emt 0:00:06]} Rxd8+ {[%emt 0:00:00] Kd4} 0-1

[Event "SWE-ch U13 2019"]
[Site "Eskilstuna"]
[Date "2019.07.08"]
[Round "1.5"]
[White "Harlin, Jacob"]
[Black "Tran, Alva Ling"]
[Result "1-0"]
[ECO "B22"]
[WhiteElo "1273"]
[BlackElo "1712"]
[Annotator "NA"]
[PlyCount "30"]
[EventDate "2019.07.06"]
[EventType "tourn"]
[EventCountry "SWE"]
[SourceTitle "playchess.com"]
[Source "ChessBase"]
[SourceQuality "1"]
[TimeControl "40/5400+30:1800+30"]

1. e4 {[%emt 0:00:00]} c5 {[%emt 0:00:00]} 2. c3 {[%emt 0:00:00]} d5 {[%emt 0:00:15]} 3. exd5 {[%emt 0:00:00]} Qxd5 {[%emt 0:00:09]} 4. d4 {[%emt 0:00:00]} cxd4 {[%emt 0:00:37]} 5. cxd4 {[%emt 0:00:00]} Nc6 {[%emt 0:00:30]} 6. Nf3 {[%emt 0:00:14]} Bg4 {[%emt 0:02:12]} 7. Be2 {[%emt 0:00:10]} e6 {[%emt 0:01:59]} 8. a3 {[%emt 0:01:25]} Nf6 {[%emt 0:05:25]} 9. Nc3 {[%emt 0:03:04]} Qd7 {[%emt 0:02:34]} 10. Be3 {[%emt 0:09:29]} Bd6 {[%emt 0:07:43]} 11. h3 {[%emt 0:02:38]} Bh5 {[%emt 0:05:34]} 12. Qd2 {[%emt 0:01:36]} O-O {[%emt 0:02:42]} 13. O-O {[%emt 0:04:41]} Rfd8 {[%emt 0:02:29]} 14. Rfd1 {[%emt 0:01:04]} Rac8 {[%emt 0:03:14]} 15. Rac1 {[%emt 0:08:35]} Bb8 {[%emt 0:18:07]} 1-0

[Event "SWE-ch U13 2019"]
[Site "Eskilstuna"]
[Date "2019.07.09"]
[Round "3.2"]
[White "Wikman, Viktor"]
[Black "Strom-Engdahl, Alexander"]
[Result "0-1"]
[ECO "C43"]
[WhiteElo "1633"]
[BlackElo "1866"]
[Annotator "NA"]
[PlyCount "64"]
[EventDate "2019.07.06"]
[EventType "tourn"]
[EventCountry "SWE"]
[SourceTitle "playchess.com"]
[Source "ChessBase"]
[SourceQuality "1"]
[TimeControl "40/5400+30:1800+30"]

1. e4 {[%emt 0:00:00]} e5 {[%emt 0:00:00]} 2. Nf3 {[%emt 0:00:00]} Nf6 {[%emt 0:00:00]} 3. d4 {[%emt 0:00:00]} Nxe4 {[%emt 0:00:00]} 4. Nxe5 {[%emt 0:00:04]} d5 {[%emt 0:00:03]} 5. Bd3 {[%emt 0:00:37]} Be7 {[%emt 0:09:15]} 6. O-O {[%emt 0:01:15]} O-O {[%emt 0:02:07]} 7. c4 {[%emt 0:01:02]} Nc6 {[%emt 0:01:42]} 8. cxd5 {[%emt 0:17:33]} Qxd5 {[%emt 0:00:09]} 9. Qf3 {[%emt 0:03:56]} Nf6 {[%emt 0:01:20]} 10. Nxc6 {[%emt 0:06:00]} bxc6 {[%emt 0:00:16]} 11. Qxd5 {[%emt 0:00:38]} cxd5 {[%emt 0:00:39]} 12. Bf4 {[%emt 0:04:14]} c6 {[%emt 0:01:46]} 13. Nd2 {[%emt 0:07:13]} Be6 {[%emt 0:01:28]} 14. Rac1 {[%emt 0:02:28]} Bd7 {[%emt 0:01:46]} 15. Nf3 {[%emt 0:02:44]} Nh5 {[%emt 0:02:41]} 16. Bg3 {[%emt 0:07:29]} Nxg3 {[%emt 0:02:11]} 17. hxg3 {[%emt 0:02:39]} Bf6 {[%emt 0:01:08]} 18. Rc5 {[%emt 0:02:48]} a5 {[%emt 0:02:43]} 19. a4 {[%emt 0:03:23]} Rfb8 {[%emt 0:01:17]} 20. Rb1 {[%emt 0:16:00]} Rb4 {[%emt 0:00:12]} 21. b3 {[%emt 0:00:53]} Bxd4 {[%emt 0:00:35]} 22. Nxd4 {[%emt 0:00:07]} Rxd4 {[%emt 0:00:04]} 23. Be2 {[%emt 0:01:35]} Kf8 {[%emt 0:00:38]} 24. Kf1 {[%emt 0:01:41]} Ke7 {[%emt 0:00:08]} 25. Rbc1 {[%emt 0:00:51]} Kd6 {[%emt 0:00:35]} 26. R1c2 {[%emt 0:08:57]} Rb4 {[%emt 0:02:00]} 27. R2c3 {[%emt 0:02:29]} Rxb3 {[%emt 0:00:50]} 28. Rxd5+ {[%emt 0:00:40]} cxd5 {[%emt 0:00:10]} 29. Rxb3 {[%emt 0:00:04]} Bxa4 {[%emt 0:00:41]} 30. Rb7 {[%emt 0:00:23]} Bd7 {[%emt 0:00:10]} 31. Ke1 {[%emt 0:00:20]} a4 {[%emt 0:00:07]} 32. Kd2 {[%emt 0:01:16]} Ke5 {[%emt 0:03:08]} 0-1

[Event "SWE-ch U13 2019"]
[Site "Eskilstuna"]
[Date "2019.07.12"]
[Round "7.1"]
[White "Seo, Jung Hyun"]
[Black "Falkevall, Axel"]
[Result "1/2-1/2"]
[ECO "D37"]
[WhiteElo "1575"]
[BlackElo "2067"]
[Annotator "NA"]
[PlyCount "42"]
[EventDate "2019.07.06"]
[EventType "tourn"]
[EventCountry "SWE"]
[SourceTitle "playchess.com"]
[Source "ChessBase"]
[SourceQuality "1"]
[TimeControl "40/5400+30:1800+30"]

1. Nf3 {[%emt 0:00:00]} Nf6 {[%emt 0:00:00]} 2. d4 {[%emt 0:00:00]} d5 {[%emt 0:00:00]} 3. c4 {[%emt 0:00:00]} e6 {[%emt 0:00:00]} 4. Nc3 {[%emt 0:00:00]} Be7 {[%emt 0:00:15]} 5. Bf4 {[%emt 0:00:00]} c6 {[%emt 0:01:15]} 6. e3 {[%emt 0:00:19]} O-O {[%emt 0:00:24]} 7. Bd3 {[%emt 0:00:28]} Nbd7 {[%emt 0:01:43]} 8. h3 {[%emt 0:00:34]} dxc4 {[%emt 0:02:20]} 9. Bxc4 {[%emt 0:00:06]} b5 {[%emt 0:01:28]} 10. Bd3 {[%emt 0:00:07]} Bb7 {[%emt 0:01:30]} 11. a3 {[%emt 0:03:17]} a6 {[%emt 0:02:56]} 12. b4 {[%emt 0:00:36]} a5 {[%emt 0:02:09]} 13. Rb1 {[%emt 0:02:09]} axb4 {[%emt 0:01:45]} 14. axb4 {[%emt 0:00:23]} Nb6 {[%emt 0:05:31]} 15. e4 {[%emt 0:01:58]} Ra3 {[%emt 0:10:32]} 16. Qc2 {[%emt 0:02:33]} h6 {[%emt 0:27:45]} 17. Bc7 {[%emt 0:03:30]} Qxc7 {[%emt 0:05:18]} 18. Nxb5 {[%emt 0:00:14]} Ra2 {[%emt 0:00:19]} 19. Nxc7 {[%emt 0:01:44]} Rxc2 {[%emt 0:00:18]} 20. Bxc2 {[%emt 0:00:04]} Rc8 {[%emt 0:02:36]} 21. Nb5 {[%emt 0:00:07]} cxb5 {[%emt 0:00:01]} 1/2-1/2

[Event "SWE-ch U13 2019"]
[Site "Eskilstuna"]
[Date "2019.07.13"]
[Round "8.3"]
[White "Strom-Engdahl, Alexander"]
[Black "Johansson-Ohman, Linnea"]
[Result "1/2-1/2"]
[ECO "D35"]
[WhiteElo "1866"]
[BlackElo "1529"]
[Annotator "NA"]
[PlyCount "76"]
[EventDate "2019.07.06"]
[EventType "tourn"]
[EventCountry "SWE"]
[SourceTitle "playchess.com"]
[Source "ChessBase"]
[SourceQuality "1"]
[TimeControl "40/5400+30:1800+30"]

1. c4 {[%emt 0:00:02]} c6 {[%emt 0:00:00]} 2. g3 {[%emt 0:04:23]} d5 {[%emt 0:00:35]} 3. Bg2 {[%emt 0:00:54]} Nf6 {[%emt 0:01:19]} 4. Nf3 {[%emt 0:02:17]} e6 {[%emt 0:11:55]} 5. Qc2 {[%emt 0:06:00]} Bd6 {[%emt 0:13:19]} 6. d4 {[%emt 0:03:30]} Nbd7 {[%emt 0:04:02]} 7. cxd5 {[%emt 0:03:55]} exd5 {[%emt 0:01:53]} 8. Nc3 {[%emt 0:00:50]} O-O {[%emt 0:03:25]} 9. O-O {[%emt 0:01:08]} Re8 {[%emt 0:01:11]} 10. Re1 {[%emt 0:01:30]} Nb6 {[%emt 0:03:38]} 11. Bg5 {[%emt 0:02:54]} h6 {[%emt 0:04:36]} 12. Bxf6 {[%emt 0:00:55]} Qxf6 {[%emt 0:00:05]} 13. e4 {[%emt 0:00:09]} Qg6 {[%emt 0:08:48]} 14. Nh4 {[%emt 0:10:27]} Qh7 {[%emt 0:01:17]} 15. Bf1 {[%emt 0:12:08]} g5 {[%emt 0:18:12]} 16. Ng2 {[%emt 0:00:49]} Bd7 {[%emt 0:07:30]} 17. Bd3 {[%emt 0:00:29]} Qg7 {[%emt 0:00:38]} 18. e5 {[%emt 0:01:34]} Bb4 {[%emt 0:03:43]} 19. a3 {[%emt 0:04:33]} Bxc3 {[%emt 0:02:09]} 20. bxc3 {[%emt 0:00:07]} Nc8 {[%emt 0:01:09]} 21. Kh1 {[%emt 0:03:02]} Ne7 {[%emt 0:00:33]} 22. f4 {[%emt 0:00:15]} Bh3 {[%emt 0:07:14]} 23. Ne3 {[%emt 0:03:16]} f6 {[%emt 0:02:25]} 24. Bf1 {[%emt 0:07:41]} Bxf1 {[%emt 0:01:41]} 25. Rxf1 {[%emt 0:00:08]} Rf8 {[%emt 0:00:37]} 26. exf6 {[%emt 0:03:47]} Rxf6 {[%emt 0:00:24]} 27. f5 {[%emt 0:00:12]} Raf8 {[%emt 0:00:33]} 28. g4 {[%emt 0:00:16]} Qh7 {[%emt 0:00:35]} 29. Kg2 {[%emt 0:00:23]} h5 {[%emt 0:00:23]} 30. h3 {[%emt 0:00:03]} Rh6 {[%emt 0:00:30]} 31. Rh1 {[%emt 0:00:15]} Kf7 {[%emt 0:00:36]} 32. Raf1 {[%emt 0:07:03]} Rh8 {[%emt 0:00:30]} 33. Qd3 {[%emt 0:00:19]} Ng8 {[%emt 0:00:28]} 34. gxh5 {[%emt 0:02:57]} Rxh5 {[%emt 0:00:02]} 35. Ng4 {[%emt 0:01:31]} Nf6 {[%emt 0:00:56]} 36. Nxf6 {[%emt 0:01:32]} Kxf6 {[%emt 0:00:02]} 37. Qe3 {[%emt 0:00:01]} Qe7 {[%emt 0:00:55]} 38. Qxe7+ {[%emt 0:04:52]} Kxe7 {[%emt 0:00:48]} 1/2-1/2